[Event "Titled Tuesday Blitz May 16 Early 2023"]
[White "Rodriguez Santiago, Jaime"]
[Black "Dobre, Claudiu-Cristian"]
[WhiteFideId "3100898"]
[BlackFideId "1211854"]
[WhiteElo "2025"]
[BlackElo "2207"]
[Result "0-1"]
[Round "07"]
[TimeControl "180+2"]
[Date "2023.05.16"]
[WhiteClock "0:00:14"]
[BlackClock "0:00:13"]

1. c4 {[%clk 0:03:00]}  Nf6 {[%clk 0:02:57]} 2. Nc3 {[%clk 0:03:00]}  c6 {[%clk 0:02:57]} 3. d4 {[%clk 0:02:58]}  d5 {[%clk 0:02:57]} 4. cxd5 {[%clk 0:02:59]}  cxd5 {[%clk 0:02:57]} 5. Bf4 {[%clk 0:02:59]}  Nc6 {[%clk 0:02:57]} 6. e3 {[%clk 0:02:59]}  Bf5 {[%clk 0:02:58]} 7. Qb3 {[%clk 0:02:59]}  Na5 {[%clk 0:02:57]} 8. Qa4+ {[%clk 0:02:59]}  Bd7 {[%clk 0:02:57]} 9. Qc2 {[%clk 0:02:59]}  Rc8 {[%clk 0:02:55]} 10. Bd3 {[%clk 0:02:54]}  e6 {[%clk 0:02:55]} 11. h3 {[%clk 0:02:46]}  Bb4 {[%clk 0:02:55]} 12. Ne2 {[%clk 0:02:45]}  O-O {[%clk 0:02:47]} 13. O-O {[%clk 0:02:43]}  b5 {[%clk 0:02:39]} 14. a3 {[%clk 0:02:31]}  Be7 {[%clk 0:02:36]} 15. Rac1 {[%clk 0:02:13]}  h6 {[%clk 0:02:32]} 16. Qd1 {[%clk 0:01:55]}  Nc4 {[%clk 0:02:31]} 17. Bxc4 {[%clk 0:01:26]}  bxc4 {[%clk 0:02:27]} 18. Ra1 {[%clk 0:01:23]}  Qb6 {[%clk 0:02:19]} 19. Qc2 {[%clk 0:01:22]}  a5 {[%clk 0:00:55]} 20. Rfb1 {[%clk 0:01:11]}  Qa6 {[%clk 0:00:54]} 21. a4 {[%clk 0:01:05]}  Bb4 {[%clk 0:00:38]} 22. Na2 {[%clk 0:00:48]}  Bc6 {[%clk 0:00:36]} 23. b3 {[%clk 0:00:46]}  Bd7 {[%clk 0:00:34]} 24. Nxb4 {[%clk 0:00:38]}  axb4 {[%clk 0:00:33]} 25. bxc4 {[%clk 0:00:38]}  Rxc4 {[%clk 0:00:33]} 26. Qd3 {[%clk 0:00:19]}  Bxa4 {[%clk 0:00:24]} 27. Rxb4 {[%clk 0:00:18]}  Bc2 {[%clk 0:00:14]} 28. Rxa6 {[%clk 0:00:17]}  Bxd3 {[%clk 0:00:14]} 29. Ng3 {[%clk 0:00:15]}  Rxb4 {[%clk 0:00:13]} 30. Kh2 {[%clk 0:00:14]}  Bxa6 {[%clk 0:00:13]} 31. Be5 {[%clk 0:00:15]}  Ne4 {[%clk 0:00:12]} 32. Nxe4 {[%clk 0:00:14]}  dxe4 {[%clk 0:00:12]} 33. Bd6 {[%clk 0:00:15]}  Rb2 {[%clk 0:00:13]} 34. Bxf8 {[%clk 0:00:15]}  Kxf8 {[%clk 0:00:13]} 35. Kg3 {[%clk 0:00:14]}  Bc4 {[%clk 0:00:13]} 0-1


[Site "https://www.chess.com"]

[Event "Titled Tuesday Blitz May 16 Early 2023"]
[White "Turzo, Attila"]
[Black "Afanasieva, Alexandra"]
[WhiteFideId "704954"]
[BlackFideId "34126926"]
[WhiteElo "2457"]
[BlackElo "1745"]
[Result "1-0"]
[Round "07"]
[TimeControl "180+2"]
[Date "2023.05.16"]
[WhiteClock "0:00:49"]
[BlackClock "0:00:22"]

1. d4 {[%clk 0:03:00]}  Nf6 {[%clk 0:02:58]} 2. c4 {[%clk 0:03:00]}  e6 {[%clk 0:02:58]} 3. g3 {[%clk 0:03:00]}  d5 {[%clk 0:02:56]} 4. Bg2 {[%clk 0:03:01]}  b6 {[%clk 0:02:56]} 5. Nf3 {[%clk 0:03:00]}  Bb7 {[%clk 0:02:56]} 6. O-O {[%clk 0:03:01]}  c5 {[%clk 0:02:52]} 7. cxd5 {[%clk 0:02:59]}  Nxd5 {[%clk 0:02:48]} 8. dxc5 {[%clk 0:02:51]}  Bxc5 {[%clk 0:02:49]} 9. a3 {[%clk 0:02:47]}  O-O {[%clk 0:02:44]} 10. b4 {[%clk 0:02:47]}  Be7 {[%clk 0:02:26]} 11. Bb2 {[%clk 0:02:47]}  Bf6 {[%clk 0:02:26]} 12. Qb3 {[%clk 0:02:45]}  Bxb2 {[%clk 0:02:21]} 13. Qxb2 {[%clk 0:02:46]}  Qf6 {[%clk 0:02:22]} 14. Qxf6 {[%clk 0:02:44]}  Nxf6 {[%clk 0:02:23]} 15. Nc3 {[%clk 0:02:42]}  Rd8 {[%clk 0:02:22]} 16. Rac1 {[%clk 0:02:34]}  Nbd7 {[%clk 0:02:03]} 17. Nd4 {[%clk 0:02:28]}  Bxg2 {[%clk 0:02:01]} 18. Kxg2 {[%clk 0:02:28]}  Rac8 {[%clk 0:02:01]} 19. Ncb5 {[%clk 0:02:15]}  a6 {[%clk 0:01:52]} 20. Na7 {[%clk 0:02:09]}  Rxc1 {[%clk 0:01:44]} 21. Rxc1 {[%clk 0:02:10]}  Ne5 {[%clk 0:01:44]} 22. Ndc6 {[%clk 0:01:49]}  Nxc6 {[%clk 0:01:43]} 23. Rxc6 {[%clk 0:01:48]}  g6 {[%clk 0:01:33]} 24. Rxb6 {[%clk 0:01:46]}  Rd2 {[%clk 0:01:33]} 25. Kf3 {[%clk 0:01:43]}  Nd5 {[%clk 0:01:21]} 26. Rxa6 {[%clk 0:01:42]}  Ra2 {[%clk 0:01:21]} 27. Nc6 {[%clk 0:01:40]}  Nc3 {[%clk 0:01:18]} 28. a4 {[%clk 0:01:30]}  Nxe2 {[%clk 0:01:09]} 29. b5 {[%clk 0:01:27]}  Nc3 {[%clk 0:01:07]} 30. b6 {[%clk 0:01:25]}  Rb2 {[%clk 0:01:05]} 31. a5 {[%clk 0:01:20]}  Nd5 {[%clk 0:01:02]} 32. Ra8+ {[%clk 0:01:12]}  Kg7 {[%clk 0:01:02]} 33. Rb8 {[%clk 0:01:12]}  Rb3+ {[%clk 0:00:59]} 34. Kg2 {[%clk 0:01:12]}  Kf6 {[%clk 0:00:48]} 35. a6 {[%clk 0:01:10]}  Rxb6 {[%clk 0:00:38]} 36. a7 {[%clk 0:01:09]}  Rxc6 {[%clk 0:00:38]} 37. a8=Q {[%clk 0:01:08]}  Rc2 {[%clk 0:00:39]} 38. Qa7 {[%clk 0:01:04]}  Rc7 {[%clk 0:00:34]} 39. Qd4+ {[%clk 0:01:03]}  Ke7 {[%clk 0:00:32]} 40. Ra8 {[%clk 0:01:02]}  Rc2 {[%clk 0:00:30]} 41. Ra7+ {[%clk 0:01:01]}  Kd6 {[%clk 0:00:28]} 42. Rxf7 {[%clk 0:00:56]}  e5 {[%clk 0:00:26]} 43. Qa7 {[%clk 0:00:51]}  Ke6 {[%clk 0:00:22]} 44. Qd7# {[%clk 0:00:49]} 1-0


[Site "https://www.chess.com"]

[Event "Titled Tuesday Blitz May 16 Early 2023"]
[White "Clawitter, Craig"]
[Black "UNSTOPPABLE_LEGEND"]
[WhiteFideId "2023105"]
[WhiteElo "2275"]
[BlackElo "2448"]
[Result "0-1"]
[Round "07"]
[TimeControl "180+2"]
[Date "2023.05.16"]
[WhiteClock "0:00:00"]
[BlackClock "0:00:12"]

1. e4 {[%clk 0:02:44]}  c6 {[%clk 0:02:59]} 2. d4 {[%clk 0:02:43]}  d5 {[%clk 0:02:58]} 3. e5 {[%clk 0:02:44]}  Bf5 {[%clk 0:02:57]} 4. Nf3 {[%clk 0:02:44]}  e6 {[%clk 0:02:56]} 5. Be2 {[%clk 0:02:44]}  Nd7 {[%clk 0:02:52]} 6. O-O {[%clk 0:02:43]}  Ne7 {[%clk 0:02:50]} 7. Nbd2 {[%clk 0:02:43]}  c5 {[%clk 0:02:37]} 8. dxc5 {[%clk 0:02:36]}  Nc6 {[%clk 0:02:34]} 9. c4 {[%clk 0:02:28]}  Nxc5 {[%clk 0:02:09]} 10. Nb3 {[%clk 0:02:11]}  dxc4 {[%clk 0:01:58]} 11. Nxc5 {[%clk 0:01:44]}  Bxc5 {[%clk 0:01:55]} 12. Qa4 {[%clk 0:01:44]}  Bd3 {[%clk 0:01:24]} 13. Bg5 {[%clk 0:01:20]}  Qb6 {[%clk 0:01:16]} 14. Bxd3 {[%clk 0:01:06]}  cxd3 {[%clk 0:01:17]} 15. Rac1 {[%clk 0:00:53]}  O-O {[%clk 0:01:15]} 16. Qg4 {[%clk 0:00:16]}  Kh8 {[%clk 0:01:12]} 17. Qh5 {[%clk 0:00:13]}  Ne7 {[%clk 0:00:56]} 18. Bf6 {[%clk 0:00:10]}  gxf6 {[%clk 0:00:47]} 19. exf6 {[%clk 0:00:10]}  Nd5 {[%clk 0:00:22]} 20. Qh6 {[%clk 0:00:07]}  Rg8 {[%clk 0:00:20]} 21. Ng5 {[%clk 0:00:07]}  Rxg5 {[%clk 0:00:18]} 22. Qxg5 {[%clk 0:00:08]}  Rg8 {[%clk 0:00:18]} 23. Qe5 {[%clk 0:00:04]}  Bd6 {[%clk 0:00:17]} 24. Qe4 {[%clk 0:00:03]}  Nf4 {[%clk 0:00:17]} 25. g3 {[%clk 0:00:03]}  Ne2+ {[%clk 0:00:15]} 26. Kg2 {[%clk 0:00:02]}  Nxc1 {[%clk 0:00:16]} 27. Rxc1 {[%clk 0:00:03]}  d2 {[%clk 0:00:14]} 28. Rd1 {[%clk 0:00:02]}  Qxb2 {[%clk 0:00:13]} 29. Qe2 {[%clk 0:00:00]}  Bb4 {[%clk 0:00:12]} 0-1


[Site "https://www.chess.com"]

[Event "Titled Tuesday Blitz May 16 Early 2023"]
[White "Sai Han Thiha"]
[Black "agvania123"]
[WhiteFideId "13012290"]
[WhiteElo "1954"]
[BlackElo "2246"]
[Result "1-0"]
[Round "07"]
[TimeControl "180+2"]
[Date "2023.05.16"]
[WhiteClock "0:01:18"]
[BlackClock "0:00:34"]

1. d4 {[%clk 0:03:00]}  d5 {[%clk 0:02:56]} 2. Nf3 {[%clk 0:03:01]}  e6 {[%clk 0:02:56]} 3. c3 {[%clk 0:02:58]}  Nf6 {[%clk 0:02:55]} 4. Bf4 {[%clk 0:02:59]}  Bd6 {[%clk 0:02:54]} 5. e3 {[%clk 0:02:57]}  O-O {[%clk 0:02:52]} 6. Nbd2 {[%clk 0:02:52]}  c5 {[%clk 0:02:51]} 7. Bg3 {[%clk 0:02:51]}  Qc7 {[%clk 0:02:51]} 8. Bd3 {[%clk 0:02:52]}  Nbd7 {[%clk 0:02:50]} 9. O-O {[%clk 0:02:52]}  e5 {[%clk 0:02:51]} 10. e4 {[%clk 0:02:44]}  exd4 {[%clk 0:02:35]} 11. cxd4 {[%clk 0:02:44]}  Bxg3 {[%clk 0:02:33]} 12. hxg3 {[%clk 0:02:45]}  dxe4 {[%clk 0:02:25]} 13. Bxe4 {[%clk 0:02:41]}  Nxe4 {[%clk 0:02:24]} 14. Nxe4 {[%clk 0:02:42]}  b6 {[%clk 0:02:01]} 15. d5 {[%clk 0:02:39]}  Bb7 {[%clk 0:01:56]} 16. Qd2 {[%clk 0:02:39]}  Ne5 {[%clk 0:01:51]} 17. Rad1 {[%clk 0:02:28]}  Nxf3+ {[%clk 0:01:51]} 18. gxf3 {[%clk 0:02:29]}  Rad8 {[%clk 0:01:47]} 19. Nc3 {[%clk 0:02:21]}  a6 {[%clk 0:01:39]} 20. a4 {[%clk 0:02:13]}  Rfe8 {[%clk 0:01:37]} 21. Rfe1 {[%clk 0:02:10]}  Qd6 {[%clk 0:01:24]} 22. Re4 {[%clk 0:01:51]}  f5 {[%clk 0:01:16]} 23. Ree1 {[%clk 0:01:44]}  g6 {[%clk 0:01:09]} 24. Qg5 {[%clk 0:01:44]}  Qd7 {[%clk 0:00:57]} 25. Re6 {[%clk 0:01:39]}  Qf7 {[%clk 0:00:43]} 26. Rde1 {[%clk 0:01:35]}  Rxe6 {[%clk 0:00:43]} 27. Qxd8+ {[%clk 0:01:35]}  Kg7 {[%clk 0:00:29]} 28. dxe6 {[%clk 0:01:32]}  Qf6 {[%clk 0:00:29]} 29. Qxf6+ {[%clk 0:01:31]}  Kxf6 {[%clk 0:00:30]} 30. e7 {[%clk 0:01:32]}  Bc6 {[%clk 0:00:31]} 31. e8=Q {[%clk 0:01:32]}  Bxe8 {[%clk 0:00:32]} 32. Rxe8 {[%clk 0:01:32]}  h5 {[%clk 0:00:32]} 33. f4 {[%clk 0:01:31]}  g5 {[%clk 0:00:31]} 34. Nd5+ {[%clk 0:01:27]}  Kf7 {[%clk 0:00:31]} 35. Re7+ {[%clk 0:01:26]}  Kg6 {[%clk 0:00:31]} 36. Re6+ {[%clk 0:01:26]}  Kg7 {[%clk 0:00:32]} 37. fxg5 {[%clk 0:01:26]}  h4 {[%clk 0:00:33]} 38. gxh4 {[%clk 0:01:26]}  b5 {[%clk 0:00:34]} 39. h5 {[%clk 0:01:25]}  bxa4 {[%clk 0:00:34]} 40. Re7+ {[%clk 0:01:26]}  Kf8 {[%clk 0:00:33]} 41. g6 {[%clk 0:01:21]}  c4 {[%clk 0:00:33]} 42. Rc7 {[%clk 0:01:18]}  c3 {[%clk 0:00:34]} 43. Nf6 {[%clk 0:01:18]}  a3 {[%clk 0:00:34]} 44. g7# {[%clk 0:01:18]} 1-0


[Site "https://www.chess.com"]

[Event "Titled Tuesday Blitz May 16 Early 2023"]
[White "Smietanska, Wiktoria"]
[Black "Pandey Srishti"]
[WhiteFideId "21869359"]
[BlackFideId "35093290"]
[WhiteElo "1995"]
[BlackElo "2123"]
[Result "1/2-1/2"]
[Round "07"]
[TimeControl "180+2"]
[Date "2023.05.16"]
[WhiteClock "0:00:04"]
[BlackClock "0:00:29"]

1. c4 {[%clk 0:03:00]}  e5 {[%clk 0:02:55]} 2. Nc3 {[%clk 0:03:00]}  d6 {[%clk 0:02:54]} 3. d4 {[%clk 0:03:00]}  exd4 {[%clk 0:02:49]} 4. Qxd4 {[%clk 0:03:01]}  Nc6 {[%clk 0:02:49]} 5. Qd2 {[%clk 0:02:59]}  g6 {[%clk 0:02:44]} 6. Nf3 {[%clk 0:02:56]}  Bg7 {[%clk 0:02:44]} 7. g3 {[%clk 0:02:55]}  Nf6 {[%clk 0:02:43]} 8. Bg2 {[%clk 0:02:53]}  O-O {[%clk 0:02:43]} 9. O-O {[%clk 0:02:53]}  Re8 {[%clk 0:02:44]} 10. b3 {[%clk 0:02:53]}  Ne4 {[%clk 0:02:42]} 11. Nxe4 {[%clk 0:02:48]}  Bxa1 {[%clk 0:02:41]} 12. Nc3 {[%clk 0:02:03]}  Bxc3 {[%clk 0:02:30]} 13. Qxc3 {[%clk 0:02:03]}  Ne5 {[%clk 0:02:27]} 14. Bb2 {[%clk 0:01:58]}  Qf6 {[%clk 0:02:20]} 15. Nd2 {[%clk 0:01:47]}  Bf5 {[%clk 0:01:26]} 16. f4 {[%clk 0:01:41]}  Ng4 {[%clk 0:01:25]} 17. Qxf6 {[%clk 0:01:38]}  Nxf6 {[%clk 0:01:26]} 18. Bxf6 {[%clk 0:01:37]}  Rxe2 {[%clk 0:01:26]} 19. Bc3 {[%clk 0:01:33]}  Rae8 {[%clk 0:01:20]} 20. Bxb7 {[%clk 0:01:27]}  Bh3 {[%clk 0:01:18]} 21. Rd1 {[%clk 0:01:20]}  R8e3 {[%clk 0:01:13]} 22. Ba5 {[%clk 0:01:14]}  c5 {[%clk 0:01:05]} 23. Bf3 {[%clk 0:00:56]}  Rxd2 {[%clk 0:00:55]} 24. Rxd2 {[%clk 0:00:50]}  Rxf3 {[%clk 0:00:54]} 25. Rd1 {[%clk 0:00:49]}  h5 {[%clk 0:00:51]} 26. Bc7 {[%clk 0:00:46]}  Rc3 {[%clk 0:00:48]} 27. Bxd6 {[%clk 0:00:32]}  Rc2 {[%clk 0:00:47]} 28. Bxc5 {[%clk 0:00:21]}  Rg2+ {[%clk 0:00:45]} 29. Kh1 {[%clk 0:00:19]}  Rxa2 {[%clk 0:00:40]} 30. Kg1 {[%clk 0:00:16]}  Rg2+ {[%clk 0:00:38]} 31. Kh1 {[%clk 0:00:15]}  Rb2 {[%clk 0:00:38]} 32. b4 {[%clk 0:00:15]}  Kh7 {[%clk 0:00:23]} 33. Rc1 {[%clk 0:00:13]}  a6 {[%clk 0:00:20]} 34. Be7 {[%clk 0:00:08]}  Bg2+ {[%clk 0:00:16]} 35. Kg1 {[%clk 0:00:08]}  Bc6 {[%clk 0:00:16]} 36. Bf6 {[%clk 0:00:05]}  Rg2+ {[%clk 0:00:16]} 37. Kf1 {[%clk 0:00:04]}  Rxh2 {[%clk 0:00:16]} 38. Re1 {[%clk 0:00:03]}  Rh1+ {[%clk 0:00:10]} 39. Kf2 {[%clk 0:00:03]}  Rxe1 {[%clk 0:00:11]} 40. Kxe1 {[%clk 0:00:03]}  Kg8 {[%clk 0:00:11]} 41. Kd2 {[%clk 0:00:04]}  Kf8 {[%clk 0:00:12]} 42. Kd3 {[%clk 0:00:04]}  Ke8 {[%clk 0:00:12]} 43. Kd4 {[%clk 0:00:04]}  Kd7 {[%clk 0:00:12]} 44. Kc5 {[%clk 0:00:04]}  Bf3 {[%clk 0:00:12]} 45. Kb6 {[%clk 0:00:04]}  Be2 {[%clk 0:00:11]} 46. c5 {[%clk 0:00:02]}  Bb5 {[%clk 0:00:10]} 47. Bg5 {[%clk 0:00:03]}  Bc4 {[%clk 0:00:06]} 48. c6+ {[%clk 0:00:03]}  Kc8 {[%clk 0:00:06]} 49. Kc5 {[%clk 0:00:02]}  Bd3 {[%clk 0:00:06]} 50. Kd6 {[%clk 0:00:03]}  Bc4 {[%clk 0:00:06]} 51. Ke7 {[%clk 0:00:02]}  Kc7 {[%clk 0:00:05]} 52. Kf6 {[%clk 0:00:03]}  Kxc6 {[%clk 0:00:06]} 53. Ke5 {[%clk 0:00:03]}  Kb5 {[%clk 0:00:07]} 54. Be7 {[%clk 0:00:03]}  Be6 {[%clk 0:00:07]} 55. Kf6 {[%clk 0:00:04]}  Kc4 {[%clk 0:00:07]} 56. Kg5 {[%clk 0:00:04]}  Kd3 {[%clk 0:00:07]} 57. Kh4 {[%clk 0:00:04]}  Ke4 {[%clk 0:00:08]} 58. Bf6 {[%clk 0:00:04]}  Kf3 {[%clk 0:00:09]} 59. Be7 {[%clk 0:00:04]}  Bd5 {[%clk 0:00:07]} 60. Bf6 {[%clk 0:00:04]}  Ke4 {[%clk 0:00:08]} 61. Kg5 {[%clk 0:00:04]}  Kd3 {[%clk 0:00:09]} 62. Be7 {[%clk 0:00:04]}  Kc4 {[%clk 0:00:10]} 63. Kh4 {[%clk 0:00:04]}  Be6 {[%clk 0:00:11]} 64. Kg5 {[%clk 0:00:04]}  Kb5 {[%clk 0:00:12]} 65. Kh4 {[%clk 0:00:05]}  Kc6 {[%clk 0:00:12]} 66. Kg5 {[%clk 0:00:04]}  Kd7 {[%clk 0:00:13]} 67. Bf6 {[%clk 0:00:05]}  Kd6 {[%clk 0:00:13]} 68. Kh4 {[%clk 0:00:05]}  Kd5 {[%clk 0:00:13]} 69. Kg5 {[%clk 0:00:05]}  Bg4 {[%clk 0:00:14]} 70. Kh4 {[%clk 0:00:05]}  Ke6 {[%clk 0:00:14]} 71. Kg5 {[%clk 0:00:05]}  Be2 {[%clk 0:00:15]} 72. Bd8 {[%clk 0:00:04]}  Bd1 {[%clk 0:00:15]} 73. Bf6 {[%clk 0:00:03]}  Kd5 {[%clk 0:00:15]} 74. Be7 {[%clk 0:00:03]}  Ke4 {[%clk 0:00:15]} 75. Kf6 {[%clk 0:00:03]}  Bb3 {[%clk 0:00:14]} 76. Kg5 {[%clk 0:00:03]}  Kf3 {[%clk 0:00:15]} 77. Kh4 {[%clk 0:00:04]}  Be6 {[%clk 0:00:14]} 78. Bf6 {[%clk 0:00:04]}  Ke4 {[%clk 0:00:14]} 79. Kg5 {[%clk 0:00:04]}  Bb3 {[%clk 0:00:15]} 80. Be7 {[%clk 0:00:03]}  Kf3 {[%clk 0:00:14]} 81. Kh4 {[%clk 0:00:03]}  Bd5 {[%clk 0:00:13]} 82. Bf6 {[%clk 0:00:03]}  Ke4 {[%clk 0:00:12]} 83. Bg5 {[%clk 0:00:03]}  Kf5 {[%clk 0:00:12]} 84. Be7 {[%clk 0:00:03]}  f6 {[%clk 0:00:13]} 85. Bd8 {[%clk 0:00:02]}  Bf3 {[%clk 0:00:13]} 86. Be7 {[%clk 0:00:02]}  g5+ {[%clk 0:00:13]} 87. fxg5 {[%clk 0:00:02]}  fxg5+ {[%clk 0:00:14]} 88. Bxg5 {[%clk 0:00:03]}  Bg4 {[%clk 0:00:14]} 89. Be7 {[%clk 0:00:03]}  Ke4 {[%clk 0:00:15]} 90. Bd6 {[%clk 0:00:04]}  Kd5 {[%clk 0:00:15]} 91. Be7 {[%clk 0:00:04]}  Kc4 {[%clk 0:00:15]} 92. Bc5 {[%clk 0:00:04]}  Kc3 {[%clk 0:00:15]} 93. Be7 {[%clk 0:00:04]}  Kd3 {[%clk 0:00:16]} 94. Bd6 {[%clk 0:00:04]}  Ke4 {[%clk 0:00:17]} 95. Bf8 {[%clk 0:00:05]}  Kd5 {[%clk 0:00:18]} 96. Be7 {[%clk 0:00:05]}  Kc6 {[%clk 0:00:19]} 97. Bf8 {[%clk 0:00:06]}  Kb5 {[%clk 0:00:19]} 98. Be7 {[%clk 0:00:06]}  Kb6 {[%clk 0:00:19]} 99. Bf8 {[%clk 0:00:06]}  Kb5 {[%clk 0:00:20]} 100. Be7 {[%clk 0:00:06]}  Kc4 {[%clk 0:00:20]} 101. Bf8 {[%clk 0:00:06]}  Kb3 {[%clk 0:00:20]} 102. Be7 {[%clk 0:00:07]}  Ka4 {[%clk 0:00:21]} 103. Bf8 {[%clk 0:00:07]}  a5 {[%clk 0:00:22]} 104. bxa5 {[%clk 0:00:07]}  Kxa5 {[%clk 0:00:23]} 105. Kg5 {[%clk 0:00:05]}  Kb5 {[%clk 0:00:23]} 106. Kh4 {[%clk 0:00:05]}  Kc6 {[%clk 0:00:24]} 107. Kg5 {[%clk 0:00:05]}  Kd5 {[%clk 0:00:25]} 108. Kh4 {[%clk 0:00:06]}  Ke6 {[%clk 0:00:26]} 109. Bh6 {[%clk 0:00:06]}  Kf5 {[%clk 0:00:27]} 110. Bf4 {[%clk 0:00:06]}  Ke4 {[%clk 0:00:27]} 111. Bg5 {[%clk 0:00:06]}  Kf3 {[%clk 0:00:28]} 112. Bd8 {[%clk 0:00:04]}  Kg2 {[%clk 0:00:29]} 1/2-1/2


[Site "https://www.chess.com"]

[Event "Titled Tuesday Blitz May 16 Early 2023"]
[White "Gatterer, Florian"]
[Black "Tarnowska, Aleksandra"]
[WhiteFideId "811688"]
[BlackFideId "1180967"]
[WhiteElo "2221"]
[BlackElo "1776"]
[Result "1-0"]
[Round "07"]
[TimeControl "180+2"]
[Date "2023.05.16"]
[WhiteClock "0:01:37"]
[BlackClock "0:00:02"]

1. d4 {[%clk 0:02:56]}  d5 {[%clk 0:02:55]} 2. Nf3 {[%clk 0:02:54]}  Nf6 {[%clk 0:02:55]} 3. Bf4 {[%clk 0:02:54]}  e6 {[%clk 0:02:54]} 4. e3 {[%clk 0:02:53]}  Be7 {[%clk 0:02:48]} 5. Ne5 {[%clk 0:02:47]}  O-O {[%clk 0:02:48]} 6. Bd3 {[%clk 0:02:46]}  c5 {[%clk 0:02:46]} 7. c3 {[%clk 0:02:46]}  Nc6 {[%clk 0:02:42]} 8. Nd2 {[%clk 0:02:46]}  Qb6 {[%clk 0:02:07]} 9. Rb1 {[%clk 0:02:43]}  c4 {[%clk 0:01:32]} 10. Bc2 {[%clk 0:02:41]}  Qa5 {[%clk 0:01:08]} 11. a3 {[%clk 0:02:40]}  h6 {[%clk 0:00:50]} 12. O-O {[%clk 0:02:39]}  Bd7 {[%clk 0:00:47]} 13. Nxd7 {[%clk 0:02:20]}  Nxd7 {[%clk 0:00:45]} 14. e4 {[%clk 0:02:20]}  e5 {[%clk 0:00:34]} 15. exd5 {[%clk 0:02:17]}  exf4 {[%clk 0:00:30]} 16. dxc6 {[%clk 0:02:15]}  bxc6 {[%clk 0:00:29]} 17. Qf3 {[%clk 0:02:08]}  Rac8 {[%clk 0:00:18]} 18. Nxc4 {[%clk 0:02:06]}  Qg5 {[%clk 0:00:17]} 19. Rfe1 {[%clk 0:02:03]}  Bf6 {[%clk 0:00:11]} 20. Qh3 {[%clk 0:01:51]}  Nb6 {[%clk 0:00:10]} 21. Nd6 {[%clk 0:01:48]}  Rc7 {[%clk 0:00:09]} 22. Ne4 {[%clk 0:01:47]}  Qh4 {[%clk 0:00:06]} 23. Qf5 {[%clk 0:01:43]}  Bg5 {[%clk 0:00:03]} 24. Nf6+ {[%clk 0:01:36]}  gxf6 {[%clk 0:00:02]} 25. Qh7# {[%clk 0:01:37]} 1-0


[Site "https://www.chess.com"]

[Event "Titled Tuesday Blitz May 16 Early 2023"]
[White "Jaivardhan Raj"]
[Black "Goswami, Vedant"]
[WhiteFideId "25744437"]
[BlackFideId "5003725"]
[WhiteElo "1772"]
[BlackElo "2011"]
[Result "1/2-1/2"]
[Round "07"]
[TimeControl "180+2"]
[Date "2023.05.16"]
[WhiteClock "0:00:17"]
[BlackClock "0:00:13"]

1. e4 {[%clk 0:02:54]}  g6 {[%clk 0:02:58]} 2. d4 {[%clk 0:02:54]}  d6 {[%clk 0:02:57]} 3. Nf3 {[%clk 0:02:54]}  Bg7 {[%clk 0:02:56]} 4. Nc3 {[%clk 0:02:55]}  c6 {[%clk 0:02:56]} 5. Bf4 {[%clk 0:02:55]}  Bg4 {[%clk 0:02:52]} 6. Qd2 {[%clk 0:02:54]}  Bxf3 {[%clk 0:02:45]} 7. gxf3 {[%clk 0:02:54]}  Nd7 {[%clk 0:02:44]} 8. O-O-O {[%clk 0:02:51]}  Qa5 {[%clk 0:02:42]} 9. Kb1 {[%clk 0:02:48]}  O-O-O {[%clk 0:02:19]} 10. h4 {[%clk 0:02:34]}  h5 {[%clk 0:02:17]} 11. Bh3 {[%clk 0:02:31]}  Bh6 {[%clk 0:01:57]} 12. Bxh6 {[%clk 0:02:22]}  Nxh6 {[%clk 0:01:56]} 13. Qd3 {[%clk 0:02:09]}  e6 {[%clk 0:01:49]} 14. f4 {[%clk 0:01:54]}  Ng4 {[%clk 0:01:41]} 15. Qg3 {[%clk 0:01:50]}  f5 {[%clk 0:01:38]} 16. f3 {[%clk 0:01:39]}  Ne3 {[%clk 0:01:37]} 17. Rd3 {[%clk 0:01:39]}  Nc4 {[%clk 0:01:34]} 18. Qxg6 {[%clk 0:01:37]}  Qb4 {[%clk 0:01:22]} 19. Nd1 {[%clk 0:01:29]}  Kc7 {[%clk 0:00:49]} 20. Qxe6 {[%clk 0:01:17]}  fxe4 {[%clk 0:00:48]} 21. fxe4 {[%clk 0:01:11]}  Rhe8 {[%clk 0:00:45]} 22. Qf5 {[%clk 0:01:04]}  Nd2+ {[%clk 0:00:35]} 23. Kc1 {[%clk 0:00:59]}  Nxe4 {[%clk 0:00:34]} 24. a3 {[%clk 0:00:44]}  Qc4 {[%clk 0:00:29]} 25. Re1 {[%clk 0:00:41]}  d5 {[%clk 0:00:26]} 26. Ne3 {[%clk 0:00:37]}  Qa2 {[%clk 0:00:25]} 27. Kd1 {[%clk 0:00:30]}  Nf2+ {[%clk 0:00:22]} 28. Ke2 {[%clk 0:00:30]}  Nxd3 {[%clk 0:00:21]} 29. Kxd3 {[%clk 0:00:30]}  Qxb2 {[%clk 0:00:19]} 30. Nxd5+ {[%clk 0:00:27]}  cxd5 {[%clk 0:00:16]} 31. Rxe8 {[%clk 0:00:28]}  Qxa3+ {[%clk 0:00:15]} 32. Kd2 {[%clk 0:00:27]}  Qb4+ {[%clk 0:00:14]} 33. Kc1 {[%clk 0:00:25]}  Qa3+ {[%clk 0:00:14]} 34. Kd2 {[%clk 0:00:25]}  Qb4+ {[%clk 0:00:14]} 35. Kc1 {[%clk 0:00:21]}  Qa3+ {[%clk 0:00:13]} 36. Kd2 {[%clk 0:00:17]} 1/2-1/2


[Site "https://www.chess.com"]